fUSD/lending_fUSD_20251217
["ID","MTS","AMOUNT","RATE_DAILY","PERIOD"]
[398910244,1765987832408,-500.0,0.00014895,2]
[398910246,1765987832417,-500.0,0.00014895,2]
[398910248,1765987832426,-500.0,0.00014895,2]
[398910250,1765987832435,-500.0,0.00014895,2]
[398910252,1765987832444,-500.0,0.00014895,2]
[398910254,1765987832453,-500.0,0.00014895,2]
[398910256,1765987832462,-500.0,0.00014895,2]
[398910258,1765987832471,-500.0,0.00014895,2]
[398910260,1765987832480,-500.0,0.00014895,2]
[398910262,1765987832489,-500.0,0.00014895,2]
[398910264,1765987832498,-500.0,0.00014895,2]
[398910266,1765987832507,-500.0,0.00014895,2]
[398910268,1765987832517,-500.0,0.00014895,2]
[398910269,1765987832525,-500.0,0.00014895,2]
[398910271,1765987832534,-500.0,0.00014895,2]
[398910273,1765987832543,-500.0,0.00014895,2]
[398910275,1765987832554,-500.0,0.00014895,2]
[398910278,1765987832564,-500.0,0.00014895,2]
[398910280,1765987832574,-360.0,0.00014895,2]
[398910281,1765987832583,-500.0,0.00014895,2]
[398910283,1765987832593,-500.0,0.00014895,2]
[398910286,1765987832602,-500.0,0.00014895,2]
[398910288,1765987832611,-500.0,0.00014895,2]
[398910290,1765987832620,-500.0,0.00014895,2]
[398910292,1765987832629,-500.0,0.00014895,2]
[398910293,1765987832638,-500.0,0.00014895,2]
[398910296,1765987832647,-500.0,0.00014895,2]
[398910297,1765987832657,-500.0,0.00014895,2]
[398910299,1765987832666,-500.0,0.00014895,2]
[398910302,1765987832675,-500.0,0.00014895,2]
[398910303,1765987832686,-500.0,0.00014895,2]
[398910306,1765987832695,-338.39154708,0.00014895,2]
[398910308,1765987832704,-500.0,0.00014895,2]
[398910309,1765987832714,-500.0,0.00014895,2]
[398910311,1765987832723,-562.89033244,0.00014895,2]
[398910314,1765987832732,-500.0,0.00014895,2]
[398910315,1765987832742,-500.0,0.00014895,2]
[398910318,1765987832752,-500.0,0.00014895,2]
[398910319,1765987832761,-500.0,0.00014895,2]
[398910321,1765987832770,-500.0,0.00014895,2]
[398910323,1765987832779,-500.0,0.00014895,2]
[398910325,1765987832789,-500.0,0.00014895,2]
[398910327,1765987832798,-500.0,0.00014895,2]
[398910330,1765987832809,-500.0,0.00014895,2]
[398910331,1765987832819,-500.0,0.00014895,2]
[398910333,1765987832830,-500.0,0.00014895,2]
[398910336,1765987832839,-500.0,0.00014895,2]
[398910338,1765987832848,-500.0,0.00014895,2]
[398910340,1765987832858,-500.0,0.00014895,2]
[398910342,1765987832867,-500.0,0.00014895,2]
[398910344,1765987832876,-500.0,0.00014895,2]
[398910346,1765987832886,-500.0,0.00014895,2]
[398910348,1765987832895,-500.0,0.00014895,2]
[398910349,1765987832904,-500.0,0.00014895,2]
[398910351,1765987832915,-498.7101719,0.00014895,2]
[398910354,1765987832924,-500.0,0.00014895,2]
[398910356,1765987832934,-500.0,0.00014895,2]
[398910357,1765987832943,-143095.12272371,0.00014896,2]
[398910360,1765987832955,-9804.71618967,0.00014896,2]
[398910362,1765987832967,-8191.31920628,0.00014896,2]
[398910364,1765987832978,-26365.04886366,0.00014896,2]
[398910366,1765987832989,-3317.75206066,0.00014896,2]
[398910371,1765987833022,-12824.00568241,0.00014896,2]
[398910373,1765987833033,-14908.02729129,0.00014896,2]
[398910376,1765987833046,-870.87,0.00014896,2]
[398910378,1765987833060,-315.0,0.00014896,2]
[398910472,1765987837987,-17545.43966766,0.00014896,2]
[398910473,1765987838000,-1510.68643378,0.00014896,2]
[398910474,1765987838011,-339.42511612,0.00014896,2]
[398910475,1765987838022,-175184.84914,0.00014896,2]
[398910476,1765987838033,-509.65848837,0.00014896,2]
[398910477,1765987838044,-944.33,0.00014896,2]
[398910478,1765987838055,-6019.23743408,0.00014896,2]
[398910479,1765987838067,-385.99999994,0.00014896,2]
[398910480,1765987838078,-142194.14466339,0.00014896,2]
[398910481,1765987838130,-195674.36703898,0.00014896,2]
[398910482,1765987838141,-9137.7202,0.00014897,2]
[398910483,1765987838150,-1042.92874462,0.000149,2]
[398910484,1765987838160,-1062.16,0.00014996,2]
[398910486,1765987838169,-14003.84472735,0.00014997,2]
[398910488,1765987838179,-277.09474556,0.00014997,2]
[398910490,1765987838188,-992.69,0.00015068,2]
[398910492,1765987838197,-900.0,0.00015077,2]
[398910494,1765987838208,-151.0,0.00015088,2]
[398910496,1765987838217,-151.0,0.00015088,2]
[398910498,1765987838226,-151.0,0.00015088,2]
[398910499,1765987838235,-151.0,0.00015088,2]
[398910501,1765987838245,-151.0,0.00015088,2]
[398910503,1765987838254,-151.0,0.00015088,2]
[398910505,1765987838264,-151.0,0.00015088,2]
[398910507,1765987838273,-151.0,0.00015088,2]
[398910509,1765987838284,-151.0,0.00015088,2]
[398910511,1765987838293,-151.0,0.00015088,2]
[398910513,1765987838302,-153.63110906,0.00015088,2]
[398910515,1765987838312,-320.72991753,0.00015095,2]
[398910517,1765987838323,-378.04073161,0.00015095,2]
[398910519,1765987838332,-500.0,0.00015096,2]
[398910521,1765987838341,-500.0,0.00015096,2]
[398910523,1765987838351,-500.14853871,0.00015096,2]
[398910525,1765987838359,-617.05510351,0.00015096,2]
[398910527,1765987838368,-468.97910059,0.00015096,2]
[398910529,1765987838377,-500.0,0.00015096,2]
[398910530,1765987838387,-500.0,0.00015096,2]
[398910531,1765987838396,-500.0,0.00015096,2]
[398910532,1765987838405,-500.0,0.00015096,2]
[398910533,1765987838414,-500.0,0.00015096,2]
[398910534,1765987838423,-500.0,0.00015096,2]
[398910535,1765987838433,-500.0,0.00015096,2]
[398910536,1765987838442,-500.0,0.00015096,2]
[398910537,1765987838451,-500.0,0.00015096,2]
[398910538,1765987838460,-500.0,0.00015096,2]
[398910539,1765987838469,-500.0,0.00015096,2]
[398910540,1765987838478,-500.0,0.00015096,2]
[398910541,1765987838487,-500.0,0.00015096,2]
[398910542,1765987838497,-500.0,0.00015096,2]
[398910543,1765987838507,-500.0,0.00015096,2]
[398910544,1765987838516,-500.0,0.00015096,2]
[398910545,1765987838525,-500.0,0.00015096,2]
[398910546,1765987838534,-500.0,0.00015096,2]
[398910547,1765987838544,-558.32,0.00015096,2]
[398910548,1765987838553,-500.0,0.00015096,2]
[398910549,1765987838563,-515.02785711,0.00015096,2]
[398910550,1765987838572,-392.85536899,0.00015096,2]
[398910551,1765987838581,-500.0,0.00015096,2]
[398910552,1765987838590,-550.52788879,0.00015096,2]
[398910553,1765987838599,-500.0,0.00015096,2]
[398910554,1765987838610,-500.0,0.00015096,2]
[398910555,1765987838619,-516.74047021,0.00015096,2]
[398910556,1765987838628,-514.23721699,0.00015096,2]
[398910557,1765987838637,-1000.0,0.00015096,2]
[398910558,1765987838646,-1000.0,0.00015096,2]
[398910559,1765987838655,-1000.0,0.00015096,2]
[398910560,1765987838664,-1000.0,0.00015096,2]
[398910561,1765987838673,-1000.0,0.00015096,2]
[398910562,1765987838683,-1000.0,0.00015096,2]
[398910563,1765987838692,-1000.0,0.00015096,2]
[398910564,1765987838701,-1000.0,0.00015096,2]
[398910565,1765987838711,-1000.0,0.00015096,2]
[398910566,1765987838720,-1000.0,0.00015096,2]
[398910567,1765987838729,-225.73772161,0.00015096,2]
[398910568,1765987838738,-3437.5222,0.00015097,2]
[398910569,1765987838748,-1000.0,0.00015097,2]
[398910570,1765987838757,-150.53901239,0.000151,2]
[398910571,1765987838766,-150.53901239,0.000151,2]
[398910572,1765987838775,-150.53901239,0.000151,2]
[398910573,1765987838783,-500.0,0.00015169,2]
[398910574,1765987838792,-1690.23,0.00015196,2]
[398910575,1765987838801,-1690.23,0.00015196,2]
[398910576,1765987838812,-1690.23,0.00015196,2]
[398910577,1765987838821,-500.0,0.00015196,2]
[398910578,1765987838830,-500.0,0.00015196,2]
[398910579,1765987838840,-500.0,0.00015196,2]
[398910580,1765987838850,-1680.0,0.00015214,2]
[398910581,1765987838859,-385.379067,0.0001527,2]
[398910582,1765987838869,-1062.16,0.0001527,2]
[398910583,1765987838879,-1147.06,0.00015291,2]
[398910584,1765987838888,-428.93005609,0.00015295,2]
[398910585,1765987838897,-500.0,0.00015296,2]
[398910586,1765987838906,-500.0,0.00015296,2]
[398910587,1765987838915,-382.40720798,0.00015296,2]
[398910588,1765987838925,-508.77668287,0.00015296,2]
[398910589,1765987838934,-500.0,0.00015296,2]
[398910590,1765987838944,-500.0,0.00015296,2]
[398910591,1765987838953,-500.0,0.00015296,2]
[398910592,1765987838963,-500.0,0.00015296,2]
[398910593,1765987838972,-500.0,0.00015296,2]
[398910594,1765987838982,-500.0,0.00015296,2]
[398910595,1765987838991,-468.57497061,0.00015296,2]
[398910596,1765987839001,-500.0,0.00015296,2]
[398910597,1765987839011,-500.0,0.00015296,2]
[398910598,1765987839020,-500.0,0.00015296,2]
[398910599,1765987839030,-500.0,0.00015296,2]
[398910600,1765987839039,-286.90864955,0.00015296,2]
[398910601,1765987839049,-500.0,0.00015296,2]
[398910602,1765987839058,-500.0,0.00015296,2]
[398910603,1765987839070,-500.0,0.00015296,2]
[398910604,1765987839081,-615.3449817,0.00015296,2]
[398910605,1765987839090,-500.0,0.00015296,2]
[398910606,1765987839099,-500.0,0.00015296,2]
[398910607,1765987839109,-500.0,0.00015296,2]
[398910608,1765987839118,-500.0,0.00015298,2]
[398910609,1765987839128,-500.0,0.00015298,2]
[398910610,1765987839138,-500.0,0.00015298,2]
[398910611,1765987839147,-500.0,0.00015298,2]
[398910612,1765987839156,-204987.86956955,0.00015298,2]
[398910613,1765987839166,-420.0,0.00015331,2]
[398910614,1765987839175,-331.23,0.00015412,2]
[398910615,1765987839185,-500.0,0.00015443,2]
[398910616,1765987839195,-1062.16,0.00015544,2]
[398910617,1765987839206,-500.0,0.00015717,2]
[398910618,1765987839562,-1690.23,0.00015717,2]
[398910619,1765987839572,-499.99999999,0.00015717,2]
[398910620,1765987839581,-4112.58268341,0.00015817,2]
[398910621,1765987839590,-1062.16,0.00015818,2]
[398910622,1765987839599,-151.0,0.00015897,2]
[398910623,1765987839609,-2833.29861518,0.000159,2]
[398910624,1765987839619,-500.0,0.00015991,2]
[398910625,1765987839628,-200.0,0.00016,5]
[398910626,1765987839637,-1062.16,0.00016092,2]
[398910627,1765987839647,-182.50362026,0.00016106,2]
[398910628,1765987839656,-999.99,0.00016116,2]
[398910629,1765987839666,-3822.44,0.00016116,2]
[398910630,1765987839675,-150.99,0.00016116,2]
[398910632,1765987839684,-25642.6,0.00016116,2]
[398910633,1765987839694,-2127.31,0.00016116,2]
[398910634,1765987839703,-29204.14,0.00016116,2]
[398910635,1765987839712,-7648.35,0.00016116,2]
[398910636,1765987839722,-9999.99,0.00016116,2]
[398910637,1765987839731,-150.99,0.00016116,2]
[398910638,1765987839740,-28635.52,0.00016116,2]
[398910639,1765987839749,-500.0,0.00016117,5]
[398910640,1765987839758,-373.03447976,0.00016148,2]
[398910641,1765987839768,-500.0,0.00016265,2]
[398910642,1765987839777,-260.0,0.00016274,2]
[398910643,1765987839787,-259.0,0.00016274,2]
[398910644,1765987839796,-275.0,0.00016307,2]
[398910645,1765987839806,-1062.16,0.00016366,2]
[398910646,1765987839817,-16968.37665432,0.00016393,2]
[398910647,1765987839827,-300.0,0.00016438,2]
[398910648,1765987839836,-300.0,0.00016438,2]
[398910649,1765987839845,-300.0,0.00016438,2]
[398910650,1765987839854,-300.0,0.00016438,2]
[398910651,1765987839863,-300.0,0.00016438,2]
[398910652,1765987839873,-300.0,0.00016438,2]
[398910653,1765987839882,-300.0,0.00016438,2]
[398910655,1765987839892,-300.0,0.00016438,2]
[398910657,1765987839902,-300.0,0.00016438,2]
[398910659,1765987839912,-300.0,0.00016438,2]
[398910660,1765987839921,-300.0,0.00016438,2]
[398910661,1765987839931,-300.0,0.00016438,2]
[398910662,1765987839940,-300.0,0.00016438,2]
[398910663,1765987839950,-300.0,0.00016438,2]
[398910664,1765987839959,-300.0,0.00016438,2]
[398910665,1765987839968,-300.0,0.00016438,2]
[398910666,1765987839978,-300.0,0.00016438,2]
[398910667,1765987839987,-300.0,0.00016438,2]
[398910668,1765987839997,-300.0,0.00016438,2]
[398910669,1765987840006,-300.0,0.00016438,2]
[398910670,1765987840016,-300.0,0.00016438,2]
[398910671,1765987840025,-300.0,0.00016438,2]
[398910672,1765987840035,-197.26900433,0.00016438,2]
[398910673,1765987840044,-500.0,0.00016438,2]
[398910674,1765987840053,-500.0,0.00016438,2]
[398910675,1765987840062,-500.0,0.00016438,2]
[398910676,1765987840072,-500.0,0.00016438,2]
[398910677,1765987840082,-500.0,0.00016438,2]
[398910678,1765987840091,-500.0,0.00016438,2]
[398910679,1765987840100,-500.0,0.00016438,2]
[398910680,1765987840109,-500.0,0.00016438,2]
[398910681,1765987840119,-500.0,0.00016438,2]
[398910682,1765987840128,-500.0,0.00016438,2]
[398910683,1765987840137,-500.0,0.00016438,2]
[398910684,1765987840147,-500.0,0.00016438,2]
[398910685,1765987840156,-500.0,0.00016438,2]
[398910686,1765987840165,-500.0,0.00016438,2]
[398910687,1765987840175,-500.0,0.00016438,2]
[398910688,1765987840184,-500.0,0.00016438,2]
[398910689,1765987840196,-600.0,0.00016438,2]
[398910690,1765987840206,-500.0,0.00016438,2]
[398910691,1765987840219,-500.0,0.00016438,2]
[398910692,1765987840228,-500.0,0.00016438,2]
[398910693,1765987840237,-500.0,0.00016438,2]
[398910694,1765987840248,-500.0,0.00016438,2]
[398910695,1765987840265,-500.0,0.00016438,2]
[398910696,1765987840284,-500.0,0.00016438,2]
[398910697,1765987840304,-500.0,0.00016438,2]
[398910699,1765987840325,-500.0,0.00016438,2]
[398910701,1765987840345,-701.81604378,0.00016438,2]
[398910703,1765987840367,-701.81604378,0.00016438,2]
[398910704,1765987840385,-701.81604378,0.00016438,2]
[398910707,1765987840394,-701.81604378,0.00016438,2]
[398910709,1765987840404,-701.81604378,0.00016438,2]
[398910710,1765987840413,-701.81604378,0.00016438,2]
[398910711,1765987840422,-701.81604378,0.00016438,2]
[398910712,1765987840432,-701.81604378,0.00016438,2]
[398910713,1765987840442,-701.81604378,0.00016438,2]
[398910714,1765987840451,-701.81604378,0.00016438,2]
[398910715,1765987840460,-701.81604378,0.00016438,2]
[398910716,1765987840469,-701.81604378,0.00016438,2]
[398910717,1765987840479,-701.81604378,0.00016438,2]
[398910719,1765987840488,-701.81604378,0.00016438,2]
[398910721,1765987840498,-701.81604378,0.00016438,2]
[398910723,1765987840507,-701.81604378,0.00016438,2]
[398910724,1765987840517,-701.81604378,0.00016438,2]
[398910725,1765987840526,-701.81604378,0.00016438,2]
[398910727,1765987840535,-701.81604378,0.00016438,2]
[398910729,1765987840544,-701.81604378,0.00016438,2]
[398910731,1765987840554,-701.81604378,0.00016438,2]
[398910733,1765987840564,-701.81604378,0.00016438,2]
[398910734,1765987840573,-701.81604378,0.00016438,2]
[398910735,1765987840582,-701.81604378,0.00016438,2]
[398910736,1765987840591,-701.81604378,0.00016438,2]
[398910737,1765987840601,-701.81604378,0.00016438,2]
[398910738,1765987840610,-701.81604378,0.00016438,2]
[398910739,1765987840619,-701.81604378,0.00016438,2]
[398910740,1765987840628,-701.81604378,0.00016438,2]
[398910741,1765987840637,-701.81604378,0.00016438,2]
[398910742,1765987840650,-701.81604378,0.00016438,2]
[398910743,1765987840659,-701.81604378,0.00016438,2]
[398910744,1765987840669,-701.81604378,0.00016438,2]
[398910745,1765987840679,-701.81604378,0.00016438,2]
[398910746,1765987840689,-701.81604378,0.00016438,2]
[398910747,1765987840698,-701.81604378,0.00016438,2]
[398910748,1765987840707,-701.81604378,0.00016438,2]
[398910749,1765987840716,-701.81604378,0.00016438,2]
[398910750,1765987840726,-701.81604378,0.00016438,2]
[398910751,1765987840735,-701.81604378,0.00016438,2]
[398910752,1765987840745,-701.81604378,0.00016438,2]
[398910753,1765987840754,-701.81604378,0.00016438,2]
[398910754,1765987840763,-701.81604378,0.00016438,2]
[398910755,1765987840772,-701.81604378,0.00016438,2]
[398910756,1765987840781,-698.12227512,0.00016438,2]
[398910757,1765987840790,-698.12227512,0.00016438,2]
[398910758,1765987840799,-698.12227512,0.00016438,2]
[398910759,1765987840808,-698.12227512,0.00016438,2]
[398910760,1765987840820,-698.12227512,0.00016438,2]
[398910761,1765987840829,-698.12227512,0.00016438,2]
[398910762,1765987840838,-698.12227512,0.00016438,2]
[398910763,1765987840847,-698.12227512,0.00016438,2]
[398910764,1765987840857,-698.12227512,0.00016438,2]
[398910765,1765987840866,-698.12227512,0.00016438,2]
[398910766,1765987840876,-698.12227512,0.00016438,2]
[398910767,1765987840885,-698.12227512,0.00016438,2]
[398910768,1765987840894,-698.12227512,0.00016438,2]
[398910769,1765987840903,-698.12227512,0.00016438,2]
[398910770,1765987840912,-698.12227512,0.00016438,2]
[398910771,1765987840921,-698.12227512,0.00016438,2]
[398910772,1765987840930,-698.12227512,0.00016438,2]
[398910773,1765987840939,-698.12227512,0.00016438,2]
[398910774,1765987840947,-698.12227512,0.00016438,2]
[398910775,1765987840956,-225.73,0.00016438,2]
[398910776,1765987840965,-900.0,0.00016447,2]
[398910777,1765987840975,-500.0,0.00016465,2]
[398910778,1765987840984,-500.0,0.00016465,2]
[398910779,1765987840993,-534.56287078,0.00016465,2]
[398910780,1765987841003,-599.97707901,0.00016539,2]
[398910781,1765987841012,-1062.16,0.0001664,2]
[398910782,1765987841022,-2351.0,0.00016736,2]
[398910783,1765987841032,-587.0,0.00016797,2]
[398910784,1765987841041,-1062.1749234,0.00016914,2]
[398910785,1765987841050,-379.34447673,0.00016973,2]
[398910786,1765987841060,-500.0,0.00016973,2]
[398910787,1765987841071,-506.79331904,0.00016973,2]
[398910788,1765987841081,-500.0,0.00016973,2]
[398910789,1765987841090,-500.0,0.00016973,2]
[398910790,1765987841099,-500.0,0.00016973,2]
[398910791,1765987841109,-500.0,0.00016973,2]
[398910792,1765987841119,-500.0,0.00016973,2]
[398910793,1765987841128,-300.33484235,0.00016973,2]
[398910794,1765987841138,-500.0,0.00016986,2]
[398910795,1765987841147,-2758.962,0.00016986,2]
[398910796,1765987841156,-1690.23,0.00016999,2]
[398910797,1765987841166,-1690.23,0.00016999,2]
[398910798,1765987841175,-1690.23,0.00016999,2]
[398910799,1765987841184,-500.0,0.00016999,6]
[398910800,1765987841194,-500.0,0.00016999,7]
[398910801,1765987841203,-500.0,0.00016999,8]
[398910802,1765987841216,-500.0,0.00016999,2]
[398910803,1765987841226,-500.0,0.0001726,3]
[398910804,1765987841236,-500.0,0.00017318,2]
[398910805,1765987841246,-481.46730423,0.00017321,2]
[398910806,1765987841255,-5797.87625258,0.00017475,2]
[398910807,1765987841264,-1000.0,0.00017521,2]
[398910808,1765987841274,-1000.0,0.00017521,2]
[398910809,1765987841284,-1000.0,0.00017521,2]
[398910810,1765987841293,-1000.0,0.00017521,2]
[398910811,1765987841302,-1000.0,0.00017521,2]
[398910812,1765987841311,-500.0,0.00017534,4]
[398910813,1765987841324,-250.0,0.00017546,2]
[398910814,1765987841333,-14003.8447273,0.00017653,2]
[398910815,1765987841343,-500.0,0.00017808,5]
[398910816,1765987841352,-512.06,0.00017808,2]
[398910817,1765987841361,-512.06,0.00017808,2]
[398910818,1765987841371,-512.06,0.00017808,2]
[398910819,1765987841380,-512.06,0.00017808,2]
[398910820,1765987841390,-512.06,0.00017808,2]
[398910821,1765987841399,-1690.23,0.00017999,2]
[398910822,1765987841408,-500.0,0.00017999,9]
[398910823,1765987841417,-11498.44893452,0.00017999,2]
[398910824,1765987841427,-7028.58960875,0.00018,2]
[398910825,1765987841435,-1500.0,0.00018068,2]
[398910826,1765987841444,-1500.0,0.00018068,2]
[398910827,1765987841453,-1626.97295087,0.00018068,2]
[398910828,1765987841462,-1500.0,0.00018068,2]
[398910829,1765987841472,-1500.0,0.00018068,2]
[398910830,1765987841481,-500.0,0.00018082,6]
[398910831,1765987841490,-1000.0,0.00018082,2]
[398910832,1765987841498,-200.0,0.00018128,2]
[398910833,1765987841507,-500.0,0.00018356,7]
[398910834,1765987841516,-553.0,0.00018402,2]
[398910835,1765987841526,-3292.0,0.00018409,2]
[398910836,1765987841535,-277.0947455,0.00018412,2]
[398910837,1765987841544,-168.0,0.00018472,2]
[398910838,1765987841570,-9999.99,0.00018533,2]
[398910839,1765987841579,-184.93187764,0.00018616,2]
[398910840,1765987841588,-2000.0,0.00018616,2]
[398910841,1765987841598,-241.18450961,0.00018616,2]
[398910842,1765987841607,-2000.0,0.00018616,2]
[398910843,1765987841616,-500.0,0.0001863,8]
[398910844,1765987841626,-152.0,0.00018633,2]
[398910845,1765987841635,-150.0,0.00018633,2]
[398910846,1765987841645,-168.0,0.00018724,2]
[398910847,1765987841654,-512.06,0.00018735,2]
[398910848,1765987841663,-1215.0,0.00018736,2]
[398910849,1765987841673,-1000.0,0.0001876,2]
[398910850,1765987841686,-500.0,0.00018773,2]
[398910851,1765987841706,-500.0,0.00018773,2]
[398910852,1765987841726,-500.0,0.00018773,2]
[398910853,1765987841744,-500.0,0.00018773,2]
[398910854,1765987841754,-500.0,0.00018773,2]
[398910855,1765987841763,-150.0,0.00018773,2]
[398910856,1765987841772,-500.0,0.00018773,2]
[398910857,1765987841781,-500.0,0.00018773,2]
[398910858,1765987841789,-500.0,0.00018773,2]
[398910859,1765987841798,-500.0,0.00018773,2]
[398910860,1765987841807,-500.0,0.00018773,2]
[398910861,1765987841819,-500.0,0.00018773,2]
[398910862,1765987841828,-500.0,0.00018773,2]
[398910863,1765987841837,-500.0,0.00018773,2]
[398910864,1765987841846,-500.0,0.00018773,2]
[398910865,1765987841854,-500.0,0.00018773,2]
[398910866,1765987841863,-500.0,0.00018773,2]
[398910867,1765987841872,-500.0,0.00018773,2]
[398910868,1765987841881,-500.0,0.00018773,2]
[398910869,1765987841890,-178.93750453,0.00018773,2]
[398910870,1765987841899,-500.0,0.00018773,2]
[398910871,1765987841908,-500.0,0.00018773,2]
[398910872,1765987841917,-500.0,0.00018773,2]
[398910873,1765987841926,-500.0,0.00018773,2]
[398910874,1765987841934,-500.0,0.00018773,2]
[398910875,1765987841943,-500.0,0.00018773,2]
[398910876,1765987841952,-500.0,0.00018773,2]
[398910877,1765987841961,-162.15907528,0.00018773,2]
[398910878,1765987841971,-500.0,0.00018773,2]
[398910879,1765987841980,-576.83817064,0.00018773,2]
[398910880,1765987841988,-500.0,0.00018773,2]
[398910881,1765987841997,-500.0,0.00018773,2]
[398910882,1765987842007,-500.0,0.00018773,2]
[398910883,1765987842015,-500.0,0.00018773,2]
[398910884,1765987842024,-500.0,0.00018773,2]
[398910885,1765987842033,-516.08920416,0.00018773,2]
[398910886,1765987842042,-569.87602686,0.00018773,2]
[398910887,1765987842051,-162.27451964,0.00018773,2]
[398910888,1765987842060,-500.0,0.00018773,2]
[398910889,1765987842071,-500.0,0.00018773,2]
[398910890,1765987842080,-500.0,0.00018773,2]
[398910891,1765987842089,-500.0,0.00018773,2]
[398910892,1765987842099,-500.0,0.00018773,2]
[398910893,1765987842109,-500.0,0.00018773,2]
[398910894,1765987842118,-500.0,0.00018773,2]
[398910895,1765987842127,-500.0,0.00018773,2]
[398910896,1765987842137,-500.0,0.00018773,2]
[398910897,1765987842146,-500.0,0.00018773,2]
[398910898,1765987842155,-500.0,0.00018773,2]
[398910899,1765987842164,-500.0,0.00018773,2]
[398910900,1765987842173,-500.0,0.00018773,2]
[398910901,1765987842182,-500.0,0.00018773,2]
[398910902,1765987842191,-150.91,0.000188,2]
[398910903,1765987842200,-150.91,0.000188,2]
[398910904,1765987842212,-150.91,0.000188,2]
[398910905,1765987842222,-168.0,0.00018809,2]
[398910906,1765987842231,-1215.0,0.00018835,2]
[398910907,1765987842240,-1215.0,0.00018869,2]
[398910908,1765987842250,-168.0,0.00018871,2]
[398910909,1765987842259,-1215.0,0.00018885,2]
[398910910,1765987842269,-500.0,0.00018904,9]
[398910911,1765987842278,-3457.53642493,0.00018904,2]
[398910912,1765987842289,-1215.0,0.00018917,2]
[398910913,1765987842298,-1215.0,0.0001893,2]
[398910914,1765987842308,-1215.0,0.00018947,2]
[398910915,1765987842320,-150.0,0.00018973,2]
[398910916,1765987842329,-163.30713897,0.00018973,2]
[398910917,1765987842339,-1690.23,0.00018999,2]
[398910918,1765987842348,-500.0,0.00018999,10]
[398910919,1765987842357,-1215.0,0.00019027,2]
[398910920,1765987842366,-168.0,0.00019075,2]
[398910921,1765987842375,-1600.0,0.00019159,2]
[398910922,1765987842384,-2500.0,0.00019164,2]
[398910923,1765987842393,-2500.0,0.00019164,2]
[398910924,1765987842402,-500.0,0.00019178,10]
[398910925,1765987842411,-900.0,0.00019178,2]
[398910926,1765987842421,-150.0,0.00019178,2]
[398910927,1765987842430,-18457.55,0.00019191,2]
[398910928,1765987842439,-385.37906696,0.00019208,2]
[398910929,1765987842448,-40438.37,0.00019282,2]
[398910930,1765987842457,-1215.0,0.00019304,2]
[398910931,1765987842466,-1000.0,0.00019321,2]
[398910932,1765987842476,-1000.0,0.00019321,2]
[398910933,1765987842485,-1014.08730683,0.00019321,2]
[398910934,1765987842494,-162.96288019,0.00019321,2]
[398910935,1765987842504,-1000.0,0.00019321,2]
[398910936,1765987842514,-1000.0,0.00019321,2]
[398910937,1765987842524,-1000.0,0.00019321,2]
[398910938,1765987842533,-1000.0,0.00019321,2]
[398910939,1765987842543,-1000.0,0.00019321,2]
[398910940,1765987842553,-340.19399092,0.00019321,2]
[398910941,1765987842564,-1000.0,0.00019321,2]
[398910942,1765987842574,-1000.0,0.00019321,2]
[398910943,1765987842583,-1000.0,0.00019321,2]
[398910944,1765987842592,-1000.0,0.00019321,2]